[Event "Athens of East Open 2019"]
[Site "Madurai"]
[Date "2019.08.13"]
[Round "10.1"]
[White "Rajat Yadav"]
[Black "Ravi Chopra"]
[Result "1-0"]
[ECO "A04"]
[WhiteElo "1455"]
[BlackElo "1634"]
[Annotator "NA RC"]
[PlyCount "72"]
[EventDate "2019.08.10"]
[EventType "swiss"]
[EventCountry "IND"]
[SourceTitle "playchess.com"]
[Source "ChessBase"]
[SourceQuality "1"]
[TimeControl "3600+30"]

1. Nf3 {[%emt 0:00:47]} c5 {[%emt 0:00:11]} 2. d4 {[%emt 0:01:21]} cxd4 {[%emt 0:00:49]} 3. Nxd4 {[%emt 0:00:26]} Nf6 {[%emt 0:00:30]} 4. e3 {[%emt 0:02:20]} Nc6 {[%emt 0:00:52]} 5. Be2 {[%emt 0:00:35]} e5 {[%emt 0:02:07]} 6. Nf5 {[%emt 0:03:59]} d5 {[%emt 0:00:47]} 7. Ng3 {[%emt 0:00:06]} Be6 {[%emt 0:03:23]} 8. O-O {[%emt 0:00:13]} Bd6 {[%emt 0:01:13]} 9. b3 {[%emt 0:01:12]} O-O {[%emt 0:00:39]} 10. Bb2 {[%emt 0:00:48]} Rc8 {[%emt 0:03:13]} 11. Nd2 {[%emt 0:01:08]} a6 {[%emt 0:01:06]} 12. c4 {[%emt 0:02:44]} Bb4 {[%emt 0:07:20]} 13. cxd5 {[%emt 0:07:02]} Bxd5 {[%emt 0:00:42]} 14. Nf3 {[%emt 0:01:49]} Re8 {[%emt 0:07:22]} 15. Qb1 {[%emt 0:02:33]} Bf8 {[%emt 0:12:44]} 16. e4 {[%emt 0:03:31]} Be6 {[%emt 0:01:21]} 17. Nxe5 {[%emt 0:01:30]} Nxe5 {[%emt 0:08:26]} 18. Bxe5 {[%emt 0:00:08]} Bd7 {[%emt 0:00:13]} 19. Qb2 {[%emt 0:01:03]} Ng4 {[%emt 0:01:20]} 20. Bd4 {[%emt 0:02:34]} Qh4 {[%emt 0:04:13]} 21. h3 {[%emt 0:01:58]} Nf6 {[%emt 0:00:34]} 22. Bf3 Nxe4 {[%emt 0:03:54]} 23. Bxe4 {[%emt 0:04:04]} Rxe4 {[%emt 0:00:05]} 24. Nxe4 {[%emt 0:00:14]} Qxe4 {[%emt 0:00:02]} 25. Rac1 {[%emt 0:05:09]} Re8 {[%emt 0:01:19]} 26. Qc3 {[%emt 0:04:28]} Bc6 {[%emt 0:01:43]} 27. f3 {[%emt 0:00:39]} Qf4 {[%emt 0:00:37]} 28. Bc5 {[%emt 0:07:32]} Qg3 {[%emt 0:01:33]} 29. Bxf8 {[%emt 0:01:20]} Rxf8 {[%emt 0:01:44]} 30. Rfe1 {[%emt 0:01:12]} Bd7 {[%emt 0:00:37]} 31. Qc7 {[%emt 0:00:32]} Qxc7 {[%emt 0:00:17]} 32. Rxc7 {[%emt 0:00:03]} Bc6 {[%emt 0:00:02]} 33. Ree7 {[%emt 0:00:54]} g6 {[%emt 0:00:39]} 34. a4 Kg7 {[%emt 0:02:12]} 35. Kf2 {[%emt 0:02:30]} h5 36. Ke3 {[%emt 0:01:34]} g5 {[%emt 0:00:50]} 1-0

[Event "Athens of East Open 2019"]
[Site "Madurai"]
[Date "2019.08.13"]
[Round "10.2"]
[White "Abishek A"]
[Black "Adithya Ramesh"]
[Result "0-1"]
[ECO "A45"]
[WhiteElo "1693"]
[BlackElo "1579"]
[Annotator "NA RC"]
[PlyCount "102"]
[EventDate "2019.08.10"]
[EventType "swiss"]
[EventCountry "IND"]
[SourceTitle "playchess.com"]
[Source "ChessBase"]
[SourceQuality "1"]
[TimeControl "3600+30"]

1. d4 {[%emt 0:00:00]} Nf6 {[%emt 0:00:00]} 2. Bg5 {[%emt 0:00:00]} Ne4 {[%emt 0:00:00]} 3. Bf4 {[%emt 0:00:16]} d5 {[%emt 0:00:00]} 4. Nd2 {[%emt 0:00:57]} Bf5 {[%emt 0:00:01]} 5. f3 {[%emt 0:00:54]} Nxd2 {[%emt 0:01:06]} 6. Qxd2 {[%emt 0:00:16]} e6 {[%emt 0:00:08]} 7. e3 {[%emt 0:00:30]} Bd6 {[%emt 0:00:57]} 8. Ne2 {[%emt 0:05:49]} O-O {[%emt 0:00:13]} 9. Bxd6 {[%emt 0:01:02]} Qxd6 {[%emt 0:00:14]} 10. Ng3 {[%emt 0:00:16]} c5 {[%emt 0:01:59]} 11. Nxf5 {[%emt 0:09:55]} exf5 {[%emt 0:00:07]} 12. dxc5 {[%emt 0:00:07]} Qxc5 {[%emt 0:00:10]} 13. O-O-O {[%emt 0:00:26]} Nc6 {[%emt 0:01:24]} 14. Qxd5 {[%emt 0:07:52]} Qxe3+ {[%emt 0:00:08]} 15. Qd2 {[%emt 0:00:06]} Qe6 {[%emt 0:02:07]} 16. Kb1 {[%emt 0:03:56]} a5 {[%emt 0:00:44]} 17. a3 {[%emt 0:01:36]} Rfd8 {[%emt 0:04:24]} 18. Bd3 {[%emt 0:01:14]} Qf6 {[%emt 0:05:02]} 19. c3 {[%emt 0:06:20]} g6 {[%emt 0:04:19]} 20. Qf2 {[%emt 0:06:58]} Ne5 {[%emt 0:06:28]} 21. Bb5 {[%emt 0:03:33]} f4 {[%emt 0:07:28]} 22. a4 {[%emt 0:01:30]} b6 {[%emt 0:04:38]} 23. Rhe1 {[%emt 0:02:28]} g5 {[%emt 0:12:32]} 24. Rd4 {[%emt 0:01:11]} Rd6 {[%emt 0:03:11]} 25. Red1 {[%emt 0:01:45]} Rad8 {[%emt 0:00:42]} 26. Rxd6 {[%emt 0:00:36]} Rxd6 {[%emt 0:00:10]} 27. Rxd6 {[%emt 0:00:15]} Qxd6 {[%emt 0:00:02]} 28. Qd4 {[%emt 0:00:15]} Qxd4 {[%emt 0:00:31]} 29. cxd4 {[%emt 0:00:05]} Ng6 {[%emt 0:00:03]} 30. Kc2 {[%emt 0:00:47]} Nh4 {[%emt 0:01:46]} 31. Bf1 {[%emt 0:00:54]} Kf8 {[%emt 0:01:25]} 32. Kd3 {[%emt 0:01:23]} Ke7 {[%emt 0:01:17]} 33. Kc4 {[%emt 0:06:27]} Kd6 {[%emt 0:01:04]} 34. Kb5 {[%emt 0:00:01]} Kc7 {[%emt 0:00:42]} 35. Bd3 {[%emt 0:00:02]} Nxg2 {[%emt 0:01:21]} 36. d5 {[%emt 0:00:04]} Ne1 {[%emt 0:00:10]} 37. Be2 {[%emt 0:06:38]} h5 {[%emt 0:00:18]} 38. d6+ {[%emt 0:01:36]} Kxd6 {[%emt 0:00:05]} 39. Kxb6 {[%emt 0:00:07]} f5 {[%emt 0:00:28]} 40. Kxa5 {[%emt 0:00:30]} g4 {[%emt 0:01:17]} 41. Kb6 {[%emt 0:00:48]} g3 {[%emt 0:01:06]} 42. hxg3 {[%emt 0:00:28]} fxg3 {[%emt 0:00:08]} 43. Bf1 {[%emt 0:00:27]} g2 {[%emt 0:00:10]} 44. Bxg2 {[%emt 0:00:03]} Nxg2 {[%emt 0:00:03]} 45. a5 {[%emt 0:00:08]} Ne3 {[%emt 0:00:12]} 46. a6 {[%emt 0:00:41]} Nd5+ {[%emt 0:00:20]} 47. Kb7 {[%emt 0:00:36]} Kc5 {[%emt 0:02:33]} 48. a7 {[%emt 0:01:13]} Nb6 {[%emt 0:00:08]} 49. Ka6 {[%emt 0:00:18]} Kc6 {[%emt 0:01:18]} 50. b4 {[%emt 0:00:16]} h4 {[%emt 0:00:13]} 51. b5+ {[%emt 0:00:18]} Kc7 {[%emt 0:00:04]} 0-1

[Event "Athens of East Open 2019"]
[Site "Madurai"]
[Date "2019.08.13"]
[Round "10.3"]
[White "Bala Ganeshan"]
[Black "Tiwari Shivansh"]
[Result "1-0"]
[ECO "B11"]
[WhiteElo "1386"]
[BlackElo "1593"]
[Annotator "NA RC"]
[PlyCount "81"]
[EventDate "2019.08.10"]
[EventType "swiss"]
[EventCountry "IND"]
[SourceTitle "playchess.com"]
[Source "ChessBase"]
[SourceQuality "1"]
[TimeControl "3600+30"]

1. e4 {[%emt 0:00:00]} c6 2. Nf3 {[%emt 0:00:13]} d5 {[%emt 0:00:05]} 3. Nc3 Bg4 {[%emt 0:00:27]} 4. h3 {[%emt 0:04:35]} Bxf3 {[%emt 0:00:26]} 5. Qxf3 {[%emt 0:01:10]} Nf6 {[%emt 0:00:13]} 6. e5 {[%emt 0:00:14]} Nfd7 {[%emt 0:00:11]} 7. d4 {[%emt 0:02:14]} e6 {[%emt 0:00:22]} 8. Ne2 {[%emt 0:00:18]} c5 {[%emt 0:00:20]} 9. c3 {[%emt 0:10:03]} Nc6 {[%emt 0:02:07]} 10. Qd3 {[%emt 0:00:46]} Rc8 {[%emt 0:02:31]} 11. f4 {[%emt 0:00:07]} cxd4 {[%emt 0:11:09]} 12. Nxd4 {[%emt 0:01:26]} Nc5 {[%emt 0:02:00]} 13. Qf3 {[%emt 0:02:39]} Ne4 14. Be3 Qh4+ {[%emt 0:02:38]} 15. Kd1 {[%emt 0:02:03]} a6 {[%emt 0:01:59]} 16. Bd3 {[%emt 0:00:59]} Nc5 {[%emt 0:00:59]} 17. Bc2 {[%emt 0:00:50]} Qd8 {[%emt 0:01:41]} 18. Rf1 {[%emt 0:01:00]} g6 {[%emt 0:04:22]} 19. Rf2 {[%emt 0:00:55]} Be7 {[%emt 0:00:55]} 20. g3 {[%emt 0:04:39]} b5 {[%emt 0:01:45]} 21. a3 {[%emt 0:03:12]} Nd7 {[%emt 0:01:20]} 22. Ke1 {[%emt 0:03:00]} Bc5 {[%emt 0:02:26]} 23. Rd1 {[%emt 0:02:53]} Qc7 {[%emt 0:02:28]} 24. Kf1 {[%emt 0:01:32]} Qa7 {[%emt 0:00:31]} 25. Rfd2 {[%emt 0:09:48]} Bb6 {[%emt 0:03:44]} 26. a4 {[%emt 0:02:53]} O-O {[%emt 0:01:40]} 27. Kg2 {[%emt 0:03:44]} Nxd4 28. Bxd4 {[%emt 0:01:05]} Bxd4 {[%emt 0:08:01]} 29. Rxd4 Rc4 30. axb5 {[%emt 0:03:37]} axb5 {[%emt 0:01:45]} 31. R4d2 {[%emt 0:03:53]} Rfc8 {[%emt 0:02:59]} 32. Bb3 R4c5 33. h4 {[%emt 0:01:10]} Qb6 {[%emt 0:05:10]} 34. h5 {[%emt 0:00:34]} b4 {[%emt 0:00:29]} 35. c4 {[%emt 0:00:43]} dxc4 {[%emt 0:02:57]} 36. Rd6 {[%emt 0:03:01]} R5c6 37. Ba4 {[%emt 0:00:34]} Nb8 {[%emt 0:03:37]} 38. Bxc6 {[%emt 0:00:19]} Nxc6 {[%emt 0:00:11]} 39. h6 {[%emt 0:00:31]} Qb8 {[%emt 0:06:39]} 40. Qxc6 f5 41. Qxc8+ {[%emt 0:02:12]} 1-0

[Event "Athens of East Open 2019"]
[Site "Madurai"]
[Date "2019.08.13"]
[Round "10.4"]
[White "Ragesh Sarma.M"]
[Black "Shadhursshaan R"]
[Result "1-0"]
[ECO "A45"]
[WhiteElo "1583"]
[BlackElo "1602"]
[Annotator "NA RC"]
[PlyCount "69"]
[EventDate "2019.08.10"]
[EventType "swiss"]
[EventCountry "IND"]
[SourceTitle "playchess.com"]
[Source "ChessBase"]
[SourceQuality "1"]
[TimeControl "3600+30"]

1. d4 {[%emt 0:00:00]} Nf6 {[%emt 0:00:00]} 2. Bg5 {[%emt 0:00:00]} Ne4 {[%emt 0:00:08]} 3. Bf4 {[%emt 0:00:00]} c5 {[%emt 0:01:30]} 4. Nd2 {[%emt 0:02:33]} Nxd2 {[%emt 0:03:42]} 5. Qxd2 {[%emt 0:00:06]} d5 {[%emt 0:00:10]} 6. e3 {[%emt 0:00:43]} Nc6 {[%emt 0:02:11]} 7. Nf3 {[%emt 0:00:17]} e6 {[%emt 0:00:18]} 8. c3 {[%emt 0:00:28]} Bd6 {[%emt 0:00:20]} 9. Bg3 {[%emt 0:00:22]} h5 {[%emt 0:04:41]} 10. dxc5 {[%emt 0:07:24]} Bxc5 {[%emt 0:01:21]} 11. Bd3 Be7 {[%emt 0:02:24]} 12. h3 {[%emt 0:05:46]} Bf6 {[%emt 0:02:03]} 13. Nd4 {[%emt 0:09:54]} e5 14. Nxc6 {[%emt 0:01:17]} bxc6 {[%emt 0:05:03]} 15. Qc2 {[%emt 0:02:35]} Rb8 {[%emt 0:14:51]} 16. O-O Rb6 {[%emt 0:05:33]} 17. Rfd1 {[%emt 0:08:19]} Qe7 18. e4 {[%emt 0:02:15]} h4 {[%emt 0:04:38]} 19. Bh2 {[%emt 0:00:26]} Kf8 {[%emt 0:07:11]} 20. exd5 {[%emt 0:05:41]} cxd5 {[%emt 0:00:13]} 21. c4 {[%emt 0:01:13]} e4 {[%emt 0:06:33]} 22. cxd5 {[%emt 0:04:21]} Bf5 {[%emt 0:00:47]} 23. d6 Qe8 {[%emt 0:03:22]} 24. Bf1 {[%emt 0:08:17]} Rxb2 {[%emt 0:00:10]} 25. Qc5 {[%emt 0:00:14]} Bd7 {[%emt 0:01:45]} 26. Rab1 {[%emt 0:00:17]} Rxb1 {[%emt 0:00:29]} 27. Rxb1 {[%emt 0:00:02]} Bd8 {[%emt 0:00:25]} 28. Qxa7 {[%emt 0:00:30]} Rh6 {[%emt 0:00:12]} 29. Rb8 {[%emt 0:01:56]} Bc6 {[%emt 0:00:26]} 30. Bf4 {[%emt 0:00:13]} Rg6 {[%emt 0:00:09]} 31. Be3 {[%emt 0:00:27]} Kg8 {[%emt 0:00:16]} 32. d7 {[%emt 0:01:45]} Bxd7 {[%emt 0:00:15]} 33. Qa8 {[%emt 0:00:45]} Qe7 {[%emt 0:00:06]} 34. Rxd8+ {[%emt 0:00:07]} Kh7 {[%emt 0:00:04]} 35. Rh8# {[%emt 0:00:13]} 1-0